bitfinex-derivatives/quotes_SOLF0:USTF0_20241216
["timestamp","ask_amount","ask_price","bid_price","bid_amount"]
[1734340559163,1.5871,219.33,219.2,9.91609792]
[1734340559763,1.5579,219.36,219.23,9.91609792]
[1734340559764,5.53195617,219.31,219.23,9.91609792]
[1734340560169,5.53195617,219.31,219.25,2.2814]
[1734340560464,2.2,219.34,219.26,9.91609792]
[1734340560660,2.2,219.34,219.26,12.11609792]
[1734340561562,2.2,219.34,219.26,9.91609792]
[1734340562165,2.2,219.34,219.24,2.2]
[1734340562460,2.2,219.34,219.24,4.4816]
[1734340562662,2.2,219.34,219.23,9.91609792]
[1734340562965,2.2811,219.3,219.23,12.11609792]
[1734340563166,2.2811,219.3,219.24,2.2816]
[1734340563862,2.2811,219.3,219.25,1.4687]
[1734340564364,17.58228881,219.35,219.25,1.4687]
[1734340564568,17.58228881,219.35,219.2,12.11609792]
[1734340564766,9.91609792,219.32,219.2,9.91609792]
[1734340564961,2.2818,219.22,219.17,14.39839792]
[1734340565166,1.57,219.31,219.17,12.11609792]
[1734340565167,2.2,219.27,219.17,12.11609792]
[1734340565466,2.2,219.29,219.21,2.2819]
[1734340565661,2.2,219.29,219.2,9.91609792]
[1734340566366,2.2815,219.26,219.2,12.19809792]
[1734340566670,2.2,219.29,219.2,9.91609792]
[1734340566865,2.2,219.29,219.17,9.91609792]
[1734340567066,2.2817,219.23,219.17,9.91609792]
[1734340567463,2.2819,219.21,219.17,9.91609792]
[1734340567965,2.2,219.29,219.17,9.91609792]
[1734340568267,2.2818,219.22,219.17,9.91609792]
[1734340568467,2.2,219.29,219.17,9.91609792]
[1734340568770,2.2,219.28,219.17,9.91609792]
[1734340568972,2.2819,219.22,219.17,9.91609792]
[1734340569463,2.2819,219.22,219.17,12.19839792]
[1734340569867,2.2819,219.21,219.17,9.91609792]
[1734340570563,2.2822,219.18,219.16,1.4442]
[1734340570971,2.2,219.23,219.11,9.91609792]
[1734340571370,2.2824,219.17,219.11,12.19889792]
[1734340571571,2.2,219.23,219.11,12.19889792]
[1734340572068,2.2,219.22,219.14,9.91609792]
[1734340572369,2.24,219.23,219.15,1.5341]
[1734340572673,3.0832,219.31,219.17,9.91609792]
[1734340572974,2.24,219.3,219.2,9.91609792]
[1734340573269,2.2814,219.27,219.21,2.2819]
[1734340573475,2.24,219.29,219.2,9.91609792]
[1734340573668,2.2813,219.27,219.2,9.91609792]
[1734340573869,2.24,219.29,219.2,9.91609792]
[1734340574374,2.2815,219.25,219.2,9.91609792]
[1734340575874,2.24,219.29,219.2,9.91609792]
[1734340576066,2.24,219.29,219.17,9.91609792]
[1734340576574,2.282,219.21,219.17,9.91609792]
[1734340579576,2.24,219.27,219.2,9.91609792]
[1734340580570,9.91609792,219.38,219.23,9.91609792]
[1734340580879,2.24,219.34,219.23,9.91609792]
[1734340581074,2.24,219.34,219.23,12.19779792]
[1734340581075,2.2811,219.29,219.23,12.19779792]
[1734340581574,2.24,219.34,219.23,12.19779792]
[1734340581879,2.2812,219.28,219.23,9.91609792]
[1734340582375,5.46619089,219.35,219.23,12.19769792]
[1734340582578,2.2811,219.3,219.23,9.91609792]
[1734340582778,2.24,219.34,219.26,9.91609792]
[1734340583169,2.2807,219.33,219.27,2.2813]
[1734340584276,2.24,219.34,219.26,9.91609792]
[1734340584677,2.281,219.3,219.26,9.91609792]
[1734340584882,2.24,219.34,219.26,9.91609792]
[1734340585583,2.2809,219.31,219.26,12.19739792]
[1734340585774,11.49229792,219.44,219.29,9.91609792]
[1734340586080,2.2799,219.4,219.32,9.91609792]
[1734340586669,2.2799,219.4,219.32,11.39279792]
[1734340587179,2.2799,219.4,219.35,9.91609792]
[1734340587778,7.60455769,219.42,219.32,11.39279792]
[1734340588478,2.2803,219.36,219.32,11.39279792]
[1734340589781,9.91609792,219.41,219.29,9.91609792]
[1734340590378,9.91609792,219.41,219.07,25.11845928]
[1734340590574,9.91609792,219.38,219.24,9.91609792]
[1734340590775,2.2808,219.32,219.25,1.437]
[1734340591082,2.24,219.37,219.25,1.437]
[1734340591474,2.2809,219.31,219.25,3.7185]
[1734340591677,2.24,219.32,219.24,9.91609792]
[1734340592286,2.2813,219.28,219.24,9.91609792]
[1734340592486,2.24,219.32,219.24,9.91609792]
[1734340593478,2.281,219.3,219.24,9.91609792]
[1734340593686,2.24,219.32,219.22,2.9195]
[1734340593980,12.15609792,219.32,219.22,1.442]
[1734340595081,2.2816,219.24,219.22,1.442]
[1734340595475,5.40224217,219.31,219.22,11.35809792]
[1734340595682,2.2812,219.28,219.22,11.35809792]
[1734340595881,5.40224217,219.31,219.22,11.35809792]
[1734340596080,5.40224217,219.31,219.22,13.63979792]
[1734340597179,5.40224217,219.31,219.22,11.35809792]
[1734340597486,5.40224217,219.31,219.23,2.2816]
[1734340597687,2.2813,219.27,219.22,11.35809792]
[1734340598488,5.40224217,219.31,219.22,1.442]
[1734340598684,9.91609792,219.3,219.16,12.15609792]
[1734340598987,2.24,219.39,219.26,9.91609792]
[1734340599185,2.24,219.39,219.27,4.5283]
[1734340599887,2.2806,219.34,219.29,2.2811]
[1734340600286,2.24,219.39,219.28,9.91609792]
[1734340600287,2.2807,219.33,219.28,9.91609792]
[1734340600886,2.2808,219.32,219.28,9.91609792]
[1734340601085,12.15609792,219.39,219.27,4.5283]
[1734340601491,2.2809,219.31,219.27,4.5283]
[1734340602993,2.28,219.34,219.27,4.5283]
[1734340603187,2.28,219.34,219.27,1.5477]
[1734340603392,2.28,219.34,219.23,9.91609792]
[1734340603590,9.91609792,219.33,219.21,2.28]
[1734340603788,9.91609792,219.3,219.17,12.19609792]
[1734340603984,2.2814,219.26,219.18,2.2822]
[1734340604188,2.28,219.29,219.18,2.2822]
[1734340604584,2.28,219.29,219.17,12.19609792]
[1734340604895,2.28,219.29,219.2,9.91609792]
[1734340605687,2.2813,219.27,219.21,2.2818]
[1734340606994,7.79699233,219.31,219.2,9.91609792]
[1734340607195,2.2815,219.25,219.2,9.91609792]
[1734340607495,2.2815,219.25,219.2,12.19609792]
[1734340607899,2.2813,219.27,219.2,14.47799792]
[1734340608116,7.79699233,219.31,219.2,14.47799792]
[1734340608117,2.28,219.31,219.2,12.19609792]
[1734340608513,2.2813,219.27,219.22,2.2817]
[1734340608922,2.2817,219.24,219.2,12.19609792]
[1734340609120,2.28,219.31,219.2,9.91609792]
[1734340609519,2.2812,219.28,219.2,9.91609792]
[1734340609717,2.28,219.31,219.2,9.91609792]
[1734340609932,2.28,219.31,219.18,2.28]
[1734340610116,2.28,219.31,219.2,9.91609792]
[1734340610718,2.2812,219.28,219.21,2.2818]
[1734340611020,2.28,219.31,219.2,9.91609792]
[1734340612513,2.2813,219.27,219.2,9.91609792]
[1734340613506,2.2813,219.27,219.22,2.2817]
[1734340614698,2.2813,219.27,219.23,9.91609792]
[1734340614894,2.2812,219.28,219.23,9.91609792]
[1734340616695,2.2813,219.27,219.23,9.91609792]
[1734340616898,2.28,219.31,219.23,9.91609792]
[1734340617893,2.2811,219.29,219.23,9.91609792]
[1734340618093,2.28,219.31,219.23,9.91609792]
[1734340618494,2.2814,219.27,219.22,2.2818]
[1734340619600,2.2814,219.26,219.21,4.5619]
[1734340619899,9.91609792,219.3,219.17,9.91609792]
[1734340620102,2.282,219.21,219.17,9.91609792]
[1734340621697,2.28,219.26,219.16,4.7191]
[1734340622401,2.2821,219.19,219.16,4.7191]
[1734340623793,2.282,219.2,219.16,4.7191]
[1734340624200,2.28,219.26,219.16,1.5814]
[1734340624393,2.2823,219.18,219.16,1.5814]
[1734340624597,2.28,219.26,219.16,1.5814]
[1734340624792,9.91609792,219.24,219.16,1.5814]
[1734340624995,2.2825,219.15,219.12,5.47256603]
[1734340625198,2.28,219.2,219.12,5.47256603]
[1734340625395,2.28,219.2,219.15,2.2825]
[1734340625600,2.2821,219.2,219.15,2.2825]
[1734340625807,2.28,219.24,219.15,1.4751]
[1734340626300,12.19609792,219.24,219.11,9.91609792]
[1734340626703,13.68879792,219.24,219.11,9.91609792]
[1734340627607,13.68879792,219.24,219.08,12.19609792]
[1734340627802,2.2825,219.16,219.11,2.2828]
[1734340628109,2.28,219.22,219.11,9.91609792]
[1734340628299,2.28,219.22,219.14,9.91609792]
[1734340628499,1.5148,219.29,219.14,9.91609792]
[1734340628703,5.56614082,219.27,219.17,9.91609792]
[1734340628905,2.28,219.28,219.18,2.28]
[1734340629105,2.28,219.28,219.17,9.91609792]
[1734340629298,2.28,219.28,219.18,2.28]
[1734340629908,2.2818,219.22,219.18,4.5621]
[1734340630101,2.28,219.28,219.15,6.6341]
[1734340630606,2.2819,219.21,219.16,2.2824]
[1734340630807,2.28,219.28,219.16,2.2824]
[1734340631409,2.28,219.28,219.15,6.6341]
[1734340631614,2.28,219.28,219.17,2.2823]
[1734340632110,15.51621873,219.29,219.17,2.2823]
[1734340632311,2.28,219.28,219.15,6.6341]
[1734340632513,5.60012081,219.29,219.17,9.91609792]
[1734340632711,2.28,219.28,219.17,9.91609792]
[1734340632913,2.28,219.28,219.2,2.2819]
[1734340632914,2.2816,219.24,219.2,2.2819]
[1734340633312,2.2816,219.24,219.17,9.91609792]
[1734340633313,2.28,219.28,219.17,9.91609792]
[1734340633510,2.28,219.28,219.19,2.2821]
[1734340633511,2.2818,219.23,219.19,2.2821]
[1734340634815,5.60012081,219.29,219.2,2.282]
[1734340635014,7.86012081,219.29,219.2,2.282]
[1734340635313,5.60012081,219.29,219.2,12.19809792]
[1734340635518,5.60012081,219.29,219.2,14.45809792]
[1734340635816,2.2815,219.25,219.21,5.11038276]
[1734340636010,2.2815,219.25,219.2,14.45809792]
[1734340636316,2.2815,219.25,219.21,5.1103348]
[1734340636515,2.2815,219.25,219.22,5.1103348]
[1734340636817,2.2812,219.28,219.23,2.2817]
[1734340637115,2.26,219.3,219.21,2.26]
[1734340637315,2.26,219.3,219.22,5.11093568]
[1734340637515,2.26,219.3,219.23,5.11106697]
[1734340637717,2.26,219.3,219.21,2.26]
[1734340637913,2.26,219.3,219.22,5.11106349]
[1734340638109,2.26,219.3,219.23,5.11106349]
[1734340638110,2.2812,219.28,219.23,5.11106349]
[1734340638313,2.2812,219.28,219.22,2.2818]
[1734340638512,2.2812,219.28,219.23,5.11136748]
[1734340638715,2.2813,219.27,219.22,2.2818]
[1734340639016,2.2813,219.27,219.23,5.11134182]
[1734340639216,2.2813,219.27,219.24,5.11134182]
[1734340639520,2.26,219.3,219.2,9.91609792]
[1734340639716,2.26,219.3,219.21,5.11128062]
[1734340639917,2.26,219.3,219.22,5.11128062]
[1734340640114,2.26,219.3,219.23,5.11128062]
[1734340640308,2.2816,219.25,219.2,12.17609792]
[1734340640510,2.2816,219.25,219.21,5.111015]
[1734340640714,2.2816,219.25,219.2,12.17609792]
[1734340640715,2.2816,219.25,219.22,5.111015]
[1734340640908,2.2816,219.25,219.2,12.17609792]
[1734340641517,2.2816,219.25,219.2,14.45809792]
[1734340642214,2.2816,219.25,219.2,12.17609792]
[1734340642517,2.26,219.3,219.17,9.91609792]
[1734340642715,2.26,219.3,219.17,12.17609792]
[1734340642914,2.2814,219.27,219.17,12.17609792]
[1734340643218,2.26,219.3,219.17,12.17609792]
[1734340643422,2.26,219.3,219.23,9.91609792]
[1734340643717,2.2813,219.28,219.23,9.91609792]
[1734340644017,2.2813,219.28,219.24,1.5529]
[1734340646611,9.91609792,219.32,219.15,2.8815]
[1734340646818,9.91609792,219.32,219.19,9.91609792]
[1734340648019,9.91609792,219.32,219.2,5.11492511]
[1734340648214,7.67672671,219.33,219.22,9.91609792]
[1734340648419,7.67672671,219.33,219.22,12.17609792]
[1734340648725,2.2814,219.27,219.23,2.2817]
[1734340649223,7.67672671,219.33,219.22,2.26]
[1734340649415,7.67672671,219.33,219.23,5.11538599]
[1734340649614,7.67672671,219.33,219.22,2.26]
[1734340649820,7.67672671,219.33,219.23,5.11520269]
[1734340650122,2.2815,219.26,219.22,4.5418]
[1734340650316,9.91609792,219.32,219.23,5.11525172]
[1734340650518,2.2819,219.22,219.18,4.5422]
[1734340650720,2.26,219.27,219.19,5.11555387]
[1734340650918,2.26,219.27,219.2,5.11555387]
[1734340651222,2.26,219.27,219.16,13.66989792]
[1734340651223,2.2819,219.21,219.16,13.66989792]
[1734340651424,2.2819,219.21,219.17,5.11614587]
[1734340651623,2.2819,219.21,219.18,5.11614587]
[1734340651825,2.2819,219.21,219.16,13.66989792]
[1734340652021,2.2819,219.21,219.17,5.11615924]
[1734340652218,2.2819,219.21,219.18,5.11615924]
[1734340652419,2.2819,219.21,219.16,13.66989792]
[1734340652619,2.2819,219.21,219.17,5.11594216]
[1734340652821,2.26,219.27,219.18,5.11594216]
[1734340653113,2.282,219.2,219.16,13.66989792]
[1734340653320,2.282,219.2,219.17,5.11592142]
[1734340653519,2.282,219.2,219.18,5.11592142]
[1734340653823,2.282,219.2,219.16,11.38759792]
[1734340654024,2.282,219.2,219.17,5.11590035]
[1734340654220,2.282,219.2,219.16,11.38759792]
[1734340654426,2.282,219.2,219.17,5.11565606]
[1734340654624,2.282,219.2,219.16,11.38759792]
[1734340654822,2.282,219.2,219.17,5.11565606]
[1734340655025,2.282,219.2,219.16,11.38759792]
[1734340655228,2.282,219.2,219.17,5.11565603]
[1734340655527,2.282,219.2,219.16,11.38759792]
[1734340655726,2.282,219.2,219.17,5.11544151]
[1734340655927,2.282,219.2,219.16,11.38759792]
[1734340656227,2.282,219.2,219.17,5.11544151]
[1734340656418,2.26,219.27,219.16,1.4715]
[1734340656623,11.45979792,219.26,219.16,1.4715]
[1734340657023,2.2823,219.17,219.16,1.4715]
[1734340657225,2.2823,219.17,219.16,6.58695742]
[1734340657419,2.2823,219.17,219.16,1.4715]
[1734340658020,2.26,219.22,219.1,17.64685686]
[1734340658228,2.26,219.22,219.11,5.11554903]
[1734340658420,2.26,219.22,219.12,5.11554903]
[1734340658622,2.26,219.22,219.1,9.91609792]
[1734340658824,2.26,219.22,219.11,5.11538215]
[1734340659029,2.26,219.22,219.07,11.36689792]
[1734340659232,2.2828,219.13,219.08,5.11560523]
[1734340659525,2.2828,219.13,219.09,5.11560523]
[1734340659726,2.26,219.17,219.1,15.03170315]
[1734340659929,2.2824,219.16,219.12,2.2828]
[1734340660728,2.2824,219.16,219.1,9.91609792]
[1734340660729,2.2826,219.14,219.1,12.19899792]
[1734340660921,2.2826,219.14,219.11,5.11310881]
[1734340661123,2.2826,219.14,219.1,12.19899792]
[1734340661322,2.26,219.17,219.11,5.11335448]
[1734340661522,2.2828,219.13,219.1,9.91609792]
[1734340661727,2.26,219.17,219.07,1.4508]
[1734340662025,2.2832,219.09,219.07,1.4508]
[1734340662222,2.2832,219.09,219.08,5.11257832]
[1734340662924,2.2831,219.1,219.08,5.11257832]
[1734340663129,2.2831,219.1,219.06,9.91609792]
[1734340663634,2.2831,219.1,219.02,2.26]
[1734340663635,2.2826,219.14,219.09,12.19919792]
[1734340664224,2.2827,219.13,219.09,12.19919792]
[1734340665226,2.24,219.16,219.05,9.91609792]
[1734340665529,2.24,219.16,219.06,5.10829747]
[1734340665732,2.2833,219.08,219.05,9.91609792]
[1734340665926,2.2833,219.08,219.06,5.10829841]
[1734340666127,2.2833,219.08,219.05,9.91609792]
[1734340666624,2.24,219.11,219.05,9.91609792]
[1734340666823,2.24,219.11,219.02,9.91609792]
[1734340667220,2.2834,219.08,219.02,9.91609792]
[1734340667424,9.91609792,219.17,219.05,9.91609792]
[1734340667729,2.2831,219.1,219.05,9.91609792]
[1734340667933,2.24,219.16,219.05,12.19959792]
[1734340668435,2.2832,219.09,219.05,12.19959792]
[1734340668637,2.24,219.16,219.05,9.91609792]
[1734340668933,2.2832,219.09,219.05,9.91609792]
[1734340669438,2.2834,219.07,219.05,9.91609792]
[1734340669635,2.24,219.16,219.05,9.91609792]
[1734340669836,2.24,219.16,219.05,12.19969792]
[1734340670128,2.24,219.16,219.08,9.91609792]
[1734340670533,2.2828,219.12,219.08,9.91609792]
[1734340671433,2.2828,219.12,219.08,12.19929792]
[1734340672029,2.2828,219.12,219.08,9.91609792]
[1734340672732,2.2827,219.13,219.08,12.19929792]
[1734340673929,2.2827,219.13,219.09,1.5051]
[1734340675932,2.2827,219.13,219.11,6.34002716]
[1734340676436,6.34002716,219.16,219.09,7.84512716]
[1734340677433,2.283,219.11,219.09,7.84512716]
[1734340677838,6.34002716,219.16,219.09,1.5051]
[1734340678039,2.283,219.1,219.09,1.5051]
[1734340678942,2.2833,219.08,219.07,6.34002716]
[1734340679139,8.58002716,219.12,219.05,6.34002716]
[1734340679534,2.2834,219.07,219.05,6.34002716]
[1734340680538,8.58002716,219.12,219.05,6.34002716]
[1734340680539,2.2835,219.06,219.05,6.34002716]
[1734340680740,2.2835,219.06,219.05,11.43641594]
[1734340680935,2.2835,219.06,219.05,6.34002716]
[1734340681343,8.58002716,219.12,219.05,6.34002716]
[1734340682244,2.2834,219.07,219.05,6.34002716]
[1734340684742,2.24,219.12,219.05,6.34002716]
[1734340684943,2.24,219.12,219.07,6.34002716]
[1734340685240,2.24,219.12,219.02,1.5712]
[1734340685241,2.2827,219.14,219.09,8.62312716]
[1734340685443,8.58002716,219.16,219.09,8.62312716]
[1734340685742,2.2826,219.14,219.09,8.62312716]
[1734340685940,8.58002716,219.16,219.09,8.62312716]
[1734340687345,8.58002716,219.16,219.1,2.283]
[1734340687946,2.2828,219.13,219.1,2.283]
[1734340689243,2.2828,219.13,219.09,8.62312716]
[1734340690040,2.2828,219.13,219.09,6.34002716]
[1734340691338,2.2826,219.14,219.11,6.34002716]
[1734340692539,2.2828,219.13,219.11,6.34002716]
[1734340692845,6.34002716,219.16,219.02,1.5712]
[1734340693048,2.283,219.1,219.09,6.34002716]
[1734340693248,2.2,219.18,219.05,2.2836]
[1734340693249,6.34002716,219.14,219.07,6.34002716]
[1734340693545,6.34002716,219.14,219.08,5.11051357]
[1734340693747,6.34002716,219.14,219.07,6.34002716]
[1734340693948,6.34002716,219.14,219.08,5.11077845]
[1734340694146,6.34002716,219.14,219.07,6.34002716]
[1734340694349,6.34002716,219.14,219.08,5.11381264]
[1734340694552,2.2831,219.09,219.07,6.34002716]
[1734340694744,2.2831,219.09,219.08,5.1140691]
[1734340695051,2.2826,219.14,219.08,7.3140691]
[1734340695350,8.54002716,219.19,219.12,6.34002716]
[1734340695851,2.2823,219.17,219.12,6.34002716]
[1734340696145,3.0585,219.23,219.12,6.34002716]
[1734340696350,6.34002716,219.23,219.16,6.34002716]
[1734340696944,2.2,219.24,219.16,6.34002716]
[1734340697150,8.54002716,219.24,219.16,6.34002716]
[1734340697348,6.34002716,219.24,219.16,6.34002716]
[1734340697650,249.65413022,219.32,219.2,6.34002716]
[1734340697651,1.562,219.32,219.2,6.34002716]
[1734340697944,1.562,219.32,219.24,6.34002716]
[1734340697945,8.54002716,219.31,219.24,6.34002716]
[1734340698250,2.2,219.31,219.2,12.09458372]
[1734340698456,2.2813,219.27,219.21,9.60023483]
[1734340698642,2.2813,219.27,219.21,2.2]
[1734340698845,2.2,219.31,219.22,5.11541019]
[1734340699043,2.2812,219.28,219.23,2.2817]
[1734340699252,2.2,219.33,219.24,1.4428]
[1734340699746,2.2811,219.29,219.24,1.4428]
[1734340699947,2.2811,219.29,219.24,3.7244]
[1734340700448,2.281,219.3,219.25,2.2815]
[1734340700644,2.281,219.3,219.24,1.4428]
[1734340700645,7.56559572,219.33,219.24,1.4428]
[1734340701047,5.36559572,219.33,219.24,1.4428]
[1734340701248,2.2,219.34,219.24,1.4428]
[1734340701643,2.2,219.34,219.26,9.89458372]
[1734340702046,2.2,219.36,219.26,9.89458372]
[1734340702247,2.2806,219.33,219.27,2.2812]
[1734340702454,2.2,219.36,219.27,2.2812]
[1734340702646,2.2,219.36,219.26,9.89458372]
[1734340702945,2.2,219.36,219.26,12.17598372]
[1734340703253,2.2,219.39,219.26,9.89458372]
[1734340703450,2.2,219.39,219.29,9.89458372]
[1734340703652,2.2806,219.34,219.29,12.17558372]
[1734340704247,2.2,219.4,219.29,12.17558372]
[1734340704248,2.2804,219.36,219.31,2.2808]
[1734340704454,5.37197016,219.4,219.29,9.89458372]
[1734340705155,2.2802,219.38,219.32,2.2806]
[1734340705752,5.37197016,219.4,219.29,9.89458372]
[1734340705956,2.2802,219.37,219.31,2.2808]
[1734340706553,2.2802,219.37,219.32,9.89458372]
[1734340706946,2.2799,219.41,219.35,9.89458372]
[1734340707155,5.51274678,219.45,219.35,9.89458372]
[1734340707352,5.51274678,219.45,219.36,1.5158]
[1734340707949,2.2797,219.43,219.37,2.2802]
[1734340708154,2.2,219.48,219.38,2.2]
[1734340708350,5.51755784,219.5,219.38,12.09458372]
[1734340708557,5.51755784,219.5,219.41,2.2798]
[1734340708749,5.51755784,219.5,219.38,12.09458372]
[1734340708955,5.51755784,219.5,219.41,9.89458372]
[1734340709158,2.279,219.49,219.41,9.89458372]
[1734340709653,2.279,219.49,219.42,1.4572]
[1734340709861,2.279,219.49,219.43,4.4796]
[1734340710754,5.54843044,219.53,219.42,1.4572]
[1734340710959,5.54843044,219.53,219.39,1.5491]
[1734340711155,9.89458372,219.48,219.36,2.973]
[1734340711357,2.2,219.47,219.36,2.973]
[1734340711959,2.2,219.49,219.38,9.89458372]
[1734340712161,2.2793,219.46,219.41,2.2798]
[1734340712556,3.6712,219.52,219.41,9.89458372]
[1734340713466,3.6712,219.52,219.42,2.2796]
[1734340714468,2.2,219.52,219.41,9.89458372]
[1734340714765,2.2,219.52,219.44,9.89458372]
[1734340714963,9.89458372,219.57,219.44,12.09458372]
[1734340715164,12.85148372,219.63,219.47,9.89458372]
[1734340715362,2.18,219.62,219.48,1.4586]
[1734340715568,2.18,219.62,219.49,4.4589]
[1734340715965,5.37761181,219.58,219.49,4.4589]
[1734340716364,5.37761181,219.58,219.49,2.18]
[1734340716969,5.37761181,219.58,219.5,9.89458372]
[1734340717265,2.18,219.62,219.5,9.89458372]
[1734340717673,2.2785,219.55,219.5,12.17348372]
[1734340720267,2.2782,219.57,219.5,9.89458372]
[1734340720471,2.2782,219.57,219.53,9.89458372]
[1734340720674,1.71701,219.63,219.54,2.2784]
[1734340721176,0.27751,219.63,219.54,2.18]
[1734340721376,0.27751,219.63,219.56,9.89458372]
[1734340721771,0.27751,219.63,219.54,2.18]
[1734340721772,0.27751,219.63,219.59,9.89458372]
[1734340721966,0.27751,219.63,219.59,12.07458372]
[1734340722469,2.18,219.7,219.62,12.17218372]
[1734340722665,2.2,219.73,219.62,12.17218372]
[1734340722870,9.89458372,219.73,219.62,9.89458372]
[1734340723070,9.89458372,219.73,219.6,1.4898]
[1734340723371,9.89458372,219.73,219.6,11.38438372]
[1734340723570,2.2,219.72,219.6,11.38438372]
[1734340724369,79.45337176,219.78,219.67,9.89458372]
[1734340724574,79.45337176,219.78,219.68,2.2]
[1734340724876,2.2766,219.73,219.68,2.2]
[1734340725073,79.45337176,219.78,219.68,2.2]
[1734340725870,9.89458372,219.74,219.6,1.4898]
[1734340726175,2.2,219.73,219.6,1.4898]
[1734340726377,2.2774,219.65,219.6,1.4898]
[1734340726774,2.2776,219.62,219.6,1.4898]
[1734340727175,2.2,219.68,219.6,1.4898]
[1734340728272,2.2,219.71,219.6,1.4898]
[1734340728479,1.4342,219.72,219.61,9.89458372]
[1734340728681,3.6342,219.72,219.61,9.89458372]
[1734340729674,2.2771,219.67,219.64,9.89458372]
[1734340730279,2.2773,219.65,219.61,9.89458372]
[1734340730476,2.2,219.74,219.61,9.89458372]
[1734340730984,2.2773,219.66,219.61,9.89458372]
[1734340731382,2.2,219.74,219.61,9.89458372]
[1734340731581,11.46348372,219.73,219.61,9.89458372]
[1734340731776,1.5689,219.73,219.61,9.89458372]
[1734340732075,2.2774,219.64,219.61,9.89458372]
[1734340732276,1.4562,219.72,219.58,2.2]
[1734340732277,2.2,219.69,219.58,2.2]
[1734340732475,2.2,219.69,219.59,9.89458372]
[1734340733073,2.2775,219.64,219.59,9.89458372]
[1734340733275,1.4562,219.72,219.62,9.89458372]
[1734340733476,2.2772,219.66,219.62,12.17218372]
[1734340733674,2.2772,219.66,219.62,12.09458372]
[1734340733873,1.5689,219.73,219.62,12.09458372]
[1734340733874,3.7689,219.73,219.62,12.09458372]
[1734340734273,2.2768,219.7,219.65,9.89458372]
[1734340734479,79.45337176,219.78,219.68,9.89458372]
[1734340734679,7.62460986,219.77,219.68,9.89458372]
[1734340735080,2.2766,219.72,219.68,9.89458372]
[1734340735785,7.62460986,219.77,219.68,9.89458372]
[1734340736279,5.42460986,219.77,219.68,9.89458372]
[1734340737081,2.2768,219.7,219.68,9.89458372]
[1734340737380,5.42460986,219.77,219.68,9.89458372]
[1734340738180,5.42460986,219.77,219.66,2.2]
[1734340738580,5.42460986,219.77,219.65,11.41618372]
[1734340739781,2.2772,219.67,219.65,9.89458372]
[1734340740076,2.2,219.73,219.62,9.89458372]
[1734340740277,2.2,219.72,219.62,9.89458372]
[1734340740484,5.42460986,219.77,219.68,9.89458372]
[1734340740785,2.2767,219.71,219.69,2.2]
[1734340741079,2.2767,219.71,219.59,5.48918973]
[1734340741080,5.42460986,219.77,219.59,5.48918973]
[1734340741281,5.42460986,219.77,219.6,5.02276746]
[1734340741485,5.42460986,219.77,219.65,9.89458372]
[1734340741887,15.31919358,219.77,219.59,5.48918973]
[1734340742082,15.31919358,219.77,219.63,9.89458372]
[1734340742083,16.89799358,219.77,219.63,9.89458372]
[1734340742687,16.89799358,219.77,219.63,12.09458372]
[1734340743182,2.2774,219.64,219.63,12.09458372]
[1734340743583,2.2,219.73,219.63,12.09458372]
[1734340743787,2.2773,219.65,219.63,12.09458372]
[1734340744679,2.2,219.73,219.63,9.89458372]
[1734340744879,2.2,219.73,219.6,9.89458372]
[1734340745184,9.89458372,219.71,219.57,15.16288372]
[1734340745483,9.89458372,219.71,219.57,11.47618372]
[1734340745980,2.2778,219.61,219.57,11.47618372]
[1734340746579,2.2,219.67,219.57,11.47618372]
[1734340746779,2.2,219.67,219.54,12.09458372]
[1734340746979,2.2,219.67,219.55,2.2]
[1734340747179,2.2781,219.58,219.55,2.2]
[1734340747579,2.2,219.67,219.54,9.89458372]
[1734340747783,9.89458372,219.65,219.51,12.09458372]
[1734340748383,9.89458372,219.65,219.52,5.05936524]
[1734340748583,9.89458372,219.65,219.51,12.09458372]
[1734340748788,9.89458372,219.65,219.52,5.05921777]